[Event "Titled Tuesday Blitz March 07 Early 2023"]
[White "Tarhan, Adar"]
[Black "Vokhidov, Shamsiddin"]
[WhiteFideId "34544712"]
[BlackFideId "14204223"]
[WhiteElo "2220"]
[BlackElo "2570"]
[Result "0-1"]
[Round "04"]
[TimeControl "180+2"]
[Date "2023.03.07"]
[WhiteClock "0:00:02"]
[BlackClock "0:00:42"]

1. e4 {[%clk 0:03:00]}  g6 {[%clk 0:03:00]} 2. d4 {[%clk 0:03:00]}  Nf6 {[%clk 0:03:01]} 3. e5 {[%clk 0:02:59]}  Nh5 {[%clk 0:03:01]} 4. g4 {[%clk 0:02:57]}  Ng7 {[%clk 0:03:01]} 5. Nc3 {[%clk 0:02:53]}  d6 {[%clk 0:03:00]} 6. Nf3 {[%clk 0:02:51]}  Bxg4 {[%clk 0:02:59]} 7. Rg1 {[%clk 0:02:44]}  Bh5 {[%clk 0:02:59]} 8. Bc4 {[%clk 0:02:43]}  Nc6 {[%clk 0:02:49]} 9. d5 {[%clk 0:02:33]}  Nxe5 {[%clk 0:02:42]} 10. Nxe5 {[%clk 0:02:33]}  Bxd1 {[%clk 0:01:58]} 11. Bb5+ {[%clk 0:02:33]}  c6 {[%clk 0:01:58]} 12. dxc6 {[%clk 0:02:34]}  a6 {[%clk 0:01:53]} 13. c7+ {[%clk 0:02:14]}  axb5 {[%clk 0:01:52]} 14. cxd8=Q+ {[%clk 0:02:15]}  Rxd8 {[%clk 0:01:53]} 15. Nxf7 {[%clk 0:02:06]}  Kxf7 {[%clk 0:01:53]} 16. Nxd1 {[%clk 0:02:03]}  Nf5 {[%clk 0:01:51]} 17. Nc3 {[%clk 0:02:01]}  Nd4 {[%clk 0:01:51]} 18. Kd1 {[%clk 0:01:58]}  Bg7 {[%clk 0:01:47]} 19. Be3 {[%clk 0:01:58]}  Rc8 {[%clk 0:01:45]} 20. Rg4 {[%clk 0:01:41]}  Nf5 {[%clk 0:01:34]} 21. Nxb5 {[%clk 0:01:31]}  Bxb2 {[%clk 0:01:32]} 22. Rb1 {[%clk 0:01:31]}  Bf6 {[%clk 0:01:33]} 23. Rgb4 {[%clk 0:01:10]}  Rc6 {[%clk 0:01:20]} 24. Na7 {[%clk 0:00:52]}  Ra6 {[%clk 0:01:19]} 25. Rxb7 {[%clk 0:00:53]}  Rxa2 {[%clk 0:01:16]} 26. Nc6 {[%clk 0:00:53]}  Rc8 {[%clk 0:01:15]} 27. Nb4 {[%clk 0:00:49]}  Ra3 {[%clk 0:01:11]} 28. Nd5 {[%clk 0:00:42]}  Bh4 {[%clk 0:01:09]} 29. R1b4 {[%clk 0:00:33]}  Ra1+ {[%clk 0:01:08]} 30. Kd2 {[%clk 0:00:29]}  Ra5 {[%clk 0:01:05]} 31. c4 {[%clk 0:00:10]}  Ra2+ {[%clk 0:01:03]} 32. Kd3 {[%clk 0:00:10]}  Bxf2 {[%clk 0:01:02]} 33. Bg5 {[%clk 0:00:08]}  Re8 {[%clk 0:00:52]} 34. Rb2 {[%clk 0:00:04]}  Rxb2 {[%clk 0:00:50]} 35. Rxb2 {[%clk 0:00:04]}  Bc5 {[%clk 0:00:51]} 36. Re2 {[%clk 0:00:05]}  h6 {[%clk 0:00:50]} 37. Bf4 {[%clk 0:00:04]}  Ra8 {[%clk 0:00:49]} 38. h4 {[%clk 0:00:04]}  Ra3+ {[%clk 0:00:49]} 39. Ke4 {[%clk 0:00:04]}  e6 {[%clk 0:00:47]} 40. Nc7 {[%clk 0:00:03]}  Rc3 {[%clk 0:00:46]} 41. Nb5 {[%clk 0:00:03]}  Rxc4+ {[%clk 0:00:46]} 42. Kf3 {[%clk 0:00:04]}  Nd4+ {[%clk 0:00:45]} 43. Nxd4 {[%clk 0:00:05]}  Rxd4 {[%clk 0:00:46]} 44. Bxh6 {[%clk 0:00:04]}  Rxh4 {[%clk 0:00:46]} 45. Bg5 {[%clk 0:00:04]}  Rb4 {[%clk 0:00:45]} 46. Ra2 {[%clk 0:00:04]}  e5 {[%clk 0:00:45]} 47. Ra8 {[%clk 0:00:04]}  e4+ {[%clk 0:00:44]} 48. Kg4 {[%clk 0:00:03]}  d5 {[%clk 0:00:43]} 49. Rc8 {[%clk 0:00:02]}  Rc4 {[%clk 0:00:42]} 50. Be3 {[%clk 0:00:01]}  Bxe3 {[%clk 0:00:41]} 51. Rxc4 {[%clk 0:00:02]}  dxc4 {[%clk 0:00:42]} 0-1


[Site "https://www.chess.com"]

[Event "Titled Tuesday Blitz March 07 Early 2023"]
[White "Yilmaz, Mustafa"]
[Black "Aizpurua, Patrick Emilio"]
[WhiteFideId "6302718"]
[BlackFideId "6600522"]
[WhiteElo "2523"]
[BlackElo "2378"]
[Result "1-0"]
[Round "04"]
[TimeControl "180+2"]
[Date "2023.03.07"]
[WhiteClock "0:00:05"]
[BlackClock "0:00:08"]

1. c4 {[%clk 0:03:00]}  e5 {[%clk 0:02:59]} 2. Nc3 {[%clk 0:03:01]}  Bb4 {[%clk 0:02:59]} 3. Nd5 {[%clk 0:03:00]}  Be7 {[%clk 0:02:58]} 4. g3 {[%clk 0:02:56]}  Nf6 {[%clk 0:02:58]} 5. Nxe7 {[%clk 0:02:49]}  Qxe7 {[%clk 0:02:58]} 6. Bg2 {[%clk 0:02:49]}  O-O {[%clk 0:02:57]} 7. d3 {[%clk 0:02:48]}  d6 {[%clk 0:02:52]} 8. Nf3 {[%clk 0:02:48]}  h6 {[%clk 0:02:48]} 9. O-O {[%clk 0:02:48]}  c6 {[%clk 0:02:47]} 10. b3 {[%clk 0:02:48]}  Bf5 {[%clk 0:02:47]} 11. Bb2 {[%clk 0:02:46]}  Nbd7 {[%clk 0:02:46]} 12. Re1 {[%clk 0:02:42]}  Rfe8 {[%clk 0:02:45]} 13. b4 {[%clk 0:02:32]}  Bh7 {[%clk 0:02:37]} 14. Qb3 {[%clk 0:02:30]}  e4 {[%clk 0:02:29]} 15. dxe4 {[%clk 0:02:28]}  Bxe4 {[%clk 0:02:30]} 16. Rad1 {[%clk 0:02:24]}  a6 {[%clk 0:02:23]} 17. Qc3 {[%clk 0:02:20]}  Rad8 {[%clk 0:02:22]} 18. a4 {[%clk 0:02:15]}  Nb6 {[%clk 0:01:52]} 19. Qb3 {[%clk 0:02:14]}  Qe6 {[%clk 0:01:44]} 20. Rc1 {[%clk 0:02:08]}  Qe7 {[%clk 0:01:31]} 21. a5 {[%clk 0:02:02]}  Nbd7 {[%clk 0:01:28]} 22. Qc3 {[%clk 0:01:52]}  Ne5 {[%clk 0:01:26]} 23. Rcd1 {[%clk 0:01:45]}  Ng6 {[%clk 0:01:21]} 24. Bh3 {[%clk 0:01:40]}  Ne5 {[%clk 0:01:13]} 25. Nd2 {[%clk 0:01:31]}  Bg6 {[%clk 0:01:11]} 26. e4 {[%clk 0:01:26]}  Bh5 {[%clk 0:01:09]} 27. f3 {[%clk 0:01:25]}  c5 {[%clk 0:01:01]} 28. b5 {[%clk 0:01:18]}  axb5 {[%clk 0:00:59]} 29. cxb5 {[%clk 0:01:19]}  d5 {[%clk 0:00:40]} 30. Qxe5 {[%clk 0:00:54]}  Qxe5 {[%clk 0:00:39]} 31. Bxe5 {[%clk 0:00:55]}  Rxe5 {[%clk 0:00:39]} 32. g4 {[%clk 0:00:55]}  Bg6 {[%clk 0:00:31]} 33. f4 {[%clk 0:00:55]}  Ree8 {[%clk 0:00:27]} 34. f5 {[%clk 0:00:48]}  Bh7 {[%clk 0:00:26]} 35. e5 {[%clk 0:00:48]}  Nd7 {[%clk 0:00:26]} 36. Nf3 {[%clk 0:00:48]}  d4 {[%clk 0:00:25]} 37. Bf1 {[%clk 0:00:44]}  h5 {[%clk 0:00:25]} 38. h3 {[%clk 0:00:44]}  hxg4 {[%clk 0:00:25]} 39. hxg4 {[%clk 0:00:45]}  g6 {[%clk 0:00:20]} 40. f6 {[%clk 0:00:42]}  g5 {[%clk 0:00:20]} 41. Bc4 {[%clk 0:00:40]}  Nf8 {[%clk 0:00:16]} 42. Nxg5 {[%clk 0:00:38]}  Bg6 {[%clk 0:00:16]} 43. Kf2 {[%clk 0:00:29]}  Nh7 {[%clk 0:00:16]} 44. Nf3 {[%clk 0:00:25]}  Kf8 {[%clk 0:00:16]} 45. Rh1 {[%clk 0:00:18]}  d3 {[%clk 0:00:16]} 46. Ng5 {[%clk 0:00:11]}  Kg8 {[%clk 0:00:12]} 47. Bxf7+ {[%clk 0:00:11]}  Bxf7 {[%clk 0:00:11]} 48. Rxh7 {[%clk 0:00:12]}  Rxe5 {[%clk 0:00:11]} 49. Rg7+ {[%clk 0:00:12]}  Kf8 {[%clk 0:00:10]} 50. Rxf7+ {[%clk 0:00:11]}  Ke8 {[%clk 0:00:09]} 51. Rg7 {[%clk 0:00:10]}  Rd6 {[%clk 0:00:08]} 52. f7+ {[%clk 0:00:05]}  Kd7 {[%clk 0:00:08]} 53. f8=Q+ {[%clk 0:00:05]} 1-0


[Site "https://www.chess.com"]

[Event "Titled Tuesday Blitz March 07 Early 2023"]
[White "Zakhartsov, Vladimir"]
[Black "Papp, Levente"]
[WhiteFideId "4145097"]
[BlackFideId "751243"]
[WhiteElo "2521"]
[BlackElo "2380"]
[Result "1-0"]
[Round "04"]
[TimeControl "180+2"]
[Date "2023.03.07"]
[WhiteClock "0:00:15"]
[BlackClock "0:00:04"]

1. d4 {[%clk 0:02:58]}  e6 {[%clk 0:02:59]} 2. c4 {[%clk 0:02:58]}  d5 {[%clk 0:02:59]} 3. Nf3 {[%clk 0:02:59]}  Nf6 {[%clk 0:02:59]} 4. g3 {[%clk 0:02:59]}  Bb4+ {[%clk 0:02:57]} 5. Bd2 {[%clk 0:02:59]}  Be7 {[%clk 0:02:56]} 6. Bg2 {[%clk 0:02:59]}  O-O {[%clk 0:02:57]} 7. O-O {[%clk 0:02:59]}  Ne4 {[%clk 0:02:58]} 8. Nc3 {[%clk 0:02:57]}  f5 {[%clk 0:02:58]} 9. Nxe4 {[%clk 0:02:55]}  fxe4 {[%clk 0:02:59]} 10. Ne5 {[%clk 0:02:55]}  Nd7 {[%clk 0:02:48]} 11. Nxd7 {[%clk 0:02:47]}  Qxd7 {[%clk 0:02:27]} 12. Rc1 {[%clk 0:02:40]}  Bf6 {[%clk 0:02:23]} 13. Bf4 {[%clk 0:02:35]}  c6 {[%clk 0:02:13]} 14. f3 {[%clk 0:02:35]}  exf3 {[%clk 0:02:09]} 15. Bxf3 {[%clk 0:02:34]}  Qe7 {[%clk 0:01:55]} 16. Qd3 {[%clk 0:02:27]}  Kh8 {[%clk 0:01:39]} 17. Qe3 {[%clk 0:02:15]}  Bd7 {[%clk 0:01:34]} 18. Bg2 {[%clk 0:02:07]}  Rae8 {[%clk 0:01:33]} 19. h4 {[%clk 0:01:55]}  dxc4 {[%clk 0:01:30]} 20. Rxc4 {[%clk 0:01:52]}  e5 {[%clk 0:01:13]} 21. Bxe5 {[%clk 0:01:18]}  Bxe5 {[%clk 0:01:12]} 22. Rxf8+ {[%clk 0:01:18]}  Rxf8 {[%clk 0:00:57]} 23. dxe5 {[%clk 0:01:12]}  Be6 {[%clk 0:00:57]} 24. Rf4 {[%clk 0:01:08]}  Rxf4 {[%clk 0:00:49]} 25. gxf4 {[%clk 0:01:05]}  Qxh4 {[%clk 0:00:47]} 26. Qd2 {[%clk 0:00:47]}  h6 {[%clk 0:00:35]} 27. e4 {[%clk 0:00:39]}  Bxa2 {[%clk 0:00:18]} 28. f5 {[%clk 0:00:38]}  Qg3 {[%clk 0:00:18]} 29. e6 {[%clk 0:00:36]}  Qe5 {[%clk 0:00:17]} 30. Qd8+ {[%clk 0:00:35]}  Kh7 {[%clk 0:00:17]} 31. e7 {[%clk 0:00:35]}  Bf7 {[%clk 0:00:16]} 32. Qf8 {[%clk 0:00:33]}  Qc5+ {[%clk 0:00:12]} 33. Kh2 {[%clk 0:00:30]}  Qd6+ {[%clk 0:00:09]} 34. Kh3 {[%clk 0:00:19]}  Qd3+ {[%clk 0:00:09]} 35. Kh4 {[%clk 0:00:18]}  Qe3 {[%clk 0:00:03]} 36. Qxf7 {[%clk 0:00:17]}  Qf2+ {[%clk 0:00:03]} 37. Kh3 {[%clk 0:00:17]}  Qe3+ {[%clk 0:00:04]} 38. Kg4 {[%clk 0:00:15]} 1-0


[Site "https://www.chess.com"]

[Event "Titled Tuesday Blitz March 07 Early 2023"]
[White "Saravana, Krishnan P."]
[Black "Zhigalko, Sergei"]
[WhiteFideId "5018382"]
[BlackFideId "13502956"]
[WhiteElo "2189"]
[BlackElo "2626"]
[Result "0-1"]
[Round "04"]
[TimeControl "180+2"]
[Date "2023.03.07"]
[WhiteClock "0:01:46"]
[BlackClock "0:02:03"]

1. e4 {[%clk 0:03:00]}  c5 {[%clk 0:03:00]} 2. Nf3 {[%clk 0:03:00]}  Nc6 {[%clk 0:03:01]} 3. d4 {[%clk 0:02:57]}  cxd4 {[%clk 0:03:01]} 4. Nxd4 {[%clk 0:02:57]}  Nf6 {[%clk 0:03:02]} 5. Nc3 {[%clk 0:02:56]}  e5 {[%clk 0:03:02]} 6. Ndb5 {[%clk 0:02:56]}  d6 {[%clk 0:03:02]} 7. Nd5 {[%clk 0:02:53]}  Nxd5 {[%clk 0:03:02]} 8. exd5 {[%clk 0:02:53]}  Nb8 {[%clk 0:03:03]} 9. c4 {[%clk 0:02:53]}  Be7 {[%clk 0:03:03]} 10. Bd3 {[%clk 0:02:50]}  a6 {[%clk 0:03:02]} 11. Nc3 {[%clk 0:02:50]}  O-O {[%clk 0:03:02]} 12. O-O {[%clk 0:02:47]}  f5 {[%clk 0:03:03]} 13. f4 {[%clk 0:02:48]}  Nd7 {[%clk 0:03:02]} 14. Kh1 {[%clk 0:02:46]}  g6 {[%clk 0:03:02]} 15. Be3 {[%clk 0:02:45]}  Bf6 {[%clk 0:03:01]} 16. Qc2 {[%clk 0:02:42]}  exf4 {[%clk 0:03:00]} 17. Bxf4 {[%clk 0:02:42]}  Ne5 {[%clk 0:03:01]} 18. Rae1 {[%clk 0:02:38]}  Bd7 {[%clk 0:03:01]} 19. Be2 {[%clk 0:02:36]}  Rc8 {[%clk 0:03:00]} 20. b3 {[%clk 0:02:35]}  b5 {[%clk 0:02:59]} 21. Bh6 {[%clk 0:02:29]}  Re8 {[%clk 0:02:58]} 22. Rc1 {[%clk 0:02:00]}  bxc4 {[%clk 0:02:55]} 23. b4 {[%clk 0:01:59]}  Nd3 {[%clk 0:02:47]} 24. Bxd3 {[%clk 0:01:56]}  cxd3 {[%clk 0:02:46]} 25. Qxd3 {[%clk 0:01:56]}  Rxc3 {[%clk 0:02:18]} 26. Rxc3 {[%clk 0:01:54]}  Bb5 {[%clk 0:02:18]} 27. Qc2 {[%clk 0:01:46]}  Bxf1 {[%clk 0:02:13]} 28. Rc7 {[%clk 0:01:46]}  Bd3 {[%clk 0:02:03]} 0-1


[Site "https://www.chess.com"]

[Event "Titled Tuesday Blitz March 07 Early 2023"]
[White "Malyi, Viacheslav"]
[Black "Narayanan, Srinath"]
[WhiteFideId "14123983"]
[BlackFideId "5018420"]
[WhiteElo "2291"]
[BlackElo "2438"]
[Result "0-1"]
[Round "04"]
[TimeControl "180+2"]
[Date "2023.03.07"]
[WhiteClock "0:01:03"]
[BlackClock "0:00:45"]

1. e4 {[%clk 0:03:00]}  c6 {[%clk 0:02:59]} 2. d4 {[%clk 0:03:00]}  d5 {[%clk 0:02:59]} 3. Nc3 {[%clk 0:03:01]}  dxe4 {[%clk 0:03:00]} 4. Nxe4 {[%clk 0:03:02]}  Nf6 {[%clk 0:03:00]} 5. Nxf6+ {[%clk 0:03:02]}  exf6 {[%clk 0:03:01]} 6. Nf3 {[%clk 0:03:01]}  Bd6 {[%clk 0:03:01]} 7. Bd3 {[%clk 0:02:54]}  O-O {[%clk 0:03:00]} 8. O-O {[%clk 0:02:54]}  Bg4 {[%clk 0:02:56]} 9. h3 {[%clk 0:02:54]}  Bh5 {[%clk 0:02:57]} 10. Bf5 {[%clk 0:02:55]}  Bg6 {[%clk 0:02:56]} 11. Qd3 {[%clk 0:02:53]}  Na6 {[%clk 0:02:55]} 12. c3 {[%clk 0:02:52]}  Re8 {[%clk 0:02:55]} 13. Nh4 {[%clk 0:02:51]}  Qa5 {[%clk 0:02:44]} 14. Bd2 {[%clk 0:02:46]}  Rad8 {[%clk 0:02:44]} 15. c4 {[%clk 0:02:38]}  Bb4 {[%clk 0:02:35]} 16. Bc3 {[%clk 0:02:23]}  Bxc3 {[%clk 0:02:17]} 17. bxc3 {[%clk 0:02:24]}  Nc5 {[%clk 0:02:16]} 18. Qc2 {[%clk 0:02:22]}  Ne4 {[%clk 0:02:17]} 19. Bxg6 {[%clk 0:02:09]}  hxg6 {[%clk 0:02:17]} 20. Nf3 {[%clk 0:02:10]}  Qxc3 {[%clk 0:02:15]} 21. Qa4 {[%clk 0:02:09]}  a6 {[%clk 0:02:12]} 22. Rac1 {[%clk 0:02:06]}  Qd3 {[%clk 0:02:00]} 23. Rfd1 {[%clk 0:02:03]}  Qe2 {[%clk 0:01:58]} 24. Rf1 {[%clk 0:01:54]}  Nd2 {[%clk 0:01:45]} 25. Nxd2 {[%clk 0:01:42]}  Qxd2 {[%clk 0:01:46]} 26. Rfd1 {[%clk 0:01:41]}  Qf4 {[%clk 0:01:39]} 27. Qb3 {[%clk 0:01:32]}  Re2 {[%clk 0:01:36]} 28. Rf1 {[%clk 0:01:30]}  Rxf2 {[%clk 0:01:14]} 29. Rxf2 {[%clk 0:01:15]}  Qxc1+ {[%clk 0:01:14]} 30. Rf1 {[%clk 0:01:16]}  Qd2 {[%clk 0:01:12]} 31. Qxb7 {[%clk 0:01:14]}  Qxd4+ {[%clk 0:01:12]} 32. Kh1 {[%clk 0:01:12]}  Qxc4 {[%clk 0:01:12]} 33. Re1 {[%clk 0:01:11]}  c5 {[%clk 0:01:05]} 34. Qe7 {[%clk 0:01:11]}  Rf8 {[%clk 0:00:56]} 35. Qd7 {[%clk 0:01:03]}  Qxa2 {[%clk 0:00:49]} 36. Re8 {[%clk 0:01:04]}  Rxe8 {[%clk 0:00:45]} 37. Qxe8+ {[%clk 0:01:05]}  Kh7 {[%clk 0:00:46]} 38. Qe4 {[%clk 0:01:05]}  Qa1+ {[%clk 0:00:45]} 39. Kh2 {[%clk 0:01:03]}  Qe5+ {[%clk 0:00:45]} 0-1


[Site "https://www.chess.com"]

[Event "Titled Tuesday Blitz March 07 Early 2023"]
[White "Yeletsky, Ivan"]
[Black "Kopczynski, Michal"]
[WhiteFideId "24180327"]
[BlackFideId "1124200"]
[WhiteElo "2414"]
[BlackElo "2212"]
[Result "1-0"]
[Round "04"]
[TimeControl "180+2"]
[Date "2023.03.07"]
[WhiteClock "0:00:07"]
[BlackClock "0:00:02"]

1. Nf3 {[%clk 0:03:00]}  d6 {[%clk 0:02:56]} 2. b3 {[%clk 0:03:01]}  e5 {[%clk 0:02:55]} 3. Bb2 {[%clk 0:03:01]}  f5 {[%clk 0:02:56]} 4. g3 {[%clk 0:02:59]}  Nf6 {[%clk 0:02:57]} 5. Bg2 {[%clk 0:02:59]}  g6 {[%clk 0:02:57]} 6. c4 {[%clk 0:02:56]}  Bg7 {[%clk 0:02:57]} 7. Nc3 {[%clk 0:02:57]}  O-O {[%clk 0:02:56]} 8. d3 {[%clk 0:02:53]}  Nc6 {[%clk 0:02:54]} 9. Qd2 {[%clk 0:02:53]}  h6 {[%clk 0:02:54]} 10. O-O-O {[%clk 0:02:53]}  a5 {[%clk 0:02:54]} 11. a3 {[%clk 0:02:46]}  Bd7 {[%clk 0:02:53]} 12. h4 {[%clk 0:02:46]}  Ng4 {[%clk 0:02:53]} 13. e3 {[%clk 0:02:45]}  a4 {[%clk 0:02:48]} 14. b4 {[%clk 0:02:45]}  Ne7 {[%clk 0:02:44]} 15. h5 {[%clk 0:02:44]}  g5 {[%clk 0:02:43]} 16. Nh2 {[%clk 0:02:42]}  c5 {[%clk 0:02:23]} 17. Nxg4 {[%clk 0:02:35]}  fxg4 {[%clk 0:02:24]} 18. b5 {[%clk 0:02:35]}  Qc7 {[%clk 0:02:14]} 19. Nd5 {[%clk 0:02:13]}  Nxd5 {[%clk 0:02:09]} 20. Bxd5+ {[%clk 0:02:13]}  Kh8 {[%clk 0:02:09]} 21. Kb1 {[%clk 0:02:05]}  Rf6 {[%clk 0:02:09]} 22. d4 {[%clk 0:02:04]}  Raf8 {[%clk 0:01:54]} 23. Rhf1 {[%clk 0:02:04]}  cxd4 {[%clk 0:01:38]} 24. exd4 {[%clk 0:02:04]}  Bf5+ {[%clk 0:01:37]} 25. Ka1 {[%clk 0:01:58]}  e4 {[%clk 0:01:30]} 26. Rde1 {[%clk 0:01:51]}  Re8 {[%clk 0:01:29]} 27. Re3 {[%clk 0:01:44]}  Bh7 {[%clk 0:01:22]} 28. Rfe1 {[%clk 0:01:42]}  Rf3 {[%clk 0:01:22]} 29. R1e2 {[%clk 0:01:32]}  Rxe3 {[%clk 0:01:15]} 30. Rxe3 {[%clk 0:01:27]}  Bg8 {[%clk 0:01:13]} 31. Bxg8 {[%clk 0:01:23]}  Kxg8 {[%clk 0:01:14]} 32. Qe2 {[%clk 0:01:18]}  Qf7 {[%clk 0:00:50]} 33. Kb1 {[%clk 0:00:40]}  Qxh5 {[%clk 0:00:46]} 34. c5 {[%clk 0:00:38]}  dxc5 {[%clk 0:00:39]} 35. dxc5 {[%clk 0:00:39]}  Bxb2 {[%clk 0:00:36]} 36. Kxb2 {[%clk 0:00:39]}  Qg6 {[%clk 0:00:29]} 37. Qc4+ {[%clk 0:00:39]}  Kh7 {[%clk 0:00:27]} 38. Qxa4 {[%clk 0:00:33]}  Qf6+ {[%clk 0:00:27]} 39. Kb3 {[%clk 0:00:30]}  Qxf2 {[%clk 0:00:27]} 40. Qd4 {[%clk 0:00:30]}  Qf5 {[%clk 0:00:24]} 41. Kb4 {[%clk 0:00:28]}  h5 {[%clk 0:00:22]} 42. Rc3 {[%clk 0:00:12]}  h4 {[%clk 0:00:20]} 43. gxh4 {[%clk 0:00:13]}  gxh4 {[%clk 0:00:21]} 44. c6 {[%clk 0:00:14]}  g3 {[%clk 0:00:17]} 45. cxb7 {[%clk 0:00:09]}  g2 {[%clk 0:00:15]} 46. Rc7+ {[%clk 0:00:09]}  Kh6 {[%clk 0:00:12]} 47. Qg7+ {[%clk 0:00:07]}  Kh5 {[%clk 0:00:12]} 48. Qxg2 {[%clk 0:00:08]}  e3 {[%clk 0:00:09]} 49. Rc5 {[%clk 0:00:04]}  Re5 {[%clk 0:00:08]} 50. Rxe5 {[%clk 0:00:02]}  Qxe5 {[%clk 0:00:09]} 51. Qe2+ {[%clk 0:00:02]}  Kg5 {[%clk 0:00:08]} 52. a4 {[%clk 0:00:03]}  Qd4+ {[%clk 0:00:08]} 53. Ka5 {[%clk 0:00:03]}  Qa7+ {[%clk 0:00:07]} 54. Kb4 {[%clk 0:00:04]}  Qd4+ {[%clk 0:00:07]} 55. Kb3 {[%clk 0:00:05]}  Qd5+ {[%clk 0:00:07]} 56. Kc3 {[%clk 0:00:05]}  Qc5+ {[%clk 0:00:07]} 57. Qc4 {[%clk 0:00:04]}  Qxc4+ {[%clk 0:00:05]} 58. Kxc4 {[%clk 0:00:05]}  e2 {[%clk 0:00:06]} 59. b8=Q {[%clk 0:00:05]}  e1=Q {[%clk 0:00:06]} 60. Qg8+ {[%clk 0:00:06]}  Kf4 {[%clk 0:00:06]} 61. Qf7+ {[%clk 0:00:06]}  Kg3 {[%clk 0:00:07]} 62. Qc7+ {[%clk 0:00:05]}  Kg2 {[%clk 0:00:06]} 63. b6 {[%clk 0:00:06]}  h3 {[%clk 0:00:05]} 64. Qc6+ {[%clk 0:00:06]}  Kg3 {[%clk 0:00:05]} 65. Qd6+ {[%clk 0:00:06]}  Kg2 {[%clk 0:00:05]} 66. Qd5+ {[%clk 0:00:06]}  Kg3 {[%clk 0:00:06]} 67. b7 {[%clk 0:00:07]}  Qe2+ {[%clk 0:00:05]} 68. Kc5 {[%clk 0:00:07]}  Qc2+ {[%clk 0:00:05]} 69. Kb6 {[%clk 0:00:06]}  Qb2+ {[%clk 0:00:05]} 70. Ka7 {[%clk 0:00:07]}  h2 {[%clk 0:00:04]} 71. b8=Q+ {[%clk 0:00:06]}  Qxb8+ {[%clk 0:00:02]} 72. Kxb8 {[%clk 0:00:07]} 1-0


[Site "https://www.chess.com"]

[Event "Titled Tuesday Blitz March 07 Early 2023"]
[White "Movahed, Sina"]
[Black "Khumalo, Keith"]
[WhiteFideId "42520835"]
[BlackFideId "14319470"]
[WhiteElo "2225"]
[BlackElo "2056"]
[Result "1-0"]
[Round "04"]
[TimeControl "180+2"]
[Date "2023.03.07"]
[WhiteClock "0:02:19"]
[BlackClock "0:02:20"]

1. e4 {[%clk 0:03:00]}  c5 {[%clk 0:02:57]} 2. Nf3 {[%clk 0:03:01]}  d6 {[%clk 0:02:57]} 3. d4 {[%clk 0:03:00]}  cxd4 {[%clk 0:02:58]} 4. Nxd4 {[%clk 0:03:00]}  Nf6 {[%clk 0:02:59]} 5. Nc3 {[%clk 0:03:01]}  g6 {[%clk 0:02:57]} 6. Be3 {[%clk 0:03:00]}  Bg7 {[%clk 0:02:57]} 7. f3 {[%clk 0:03:00]}  O-O {[%clk 0:02:58]} 8. Qd2 {[%clk 0:03:01]}  Nc6 {[%clk 0:02:58]} 9. O-O-O {[%clk 0:03:01]}  d5 {[%clk 0:02:59]} 10. exd5 {[%clk 0:02:57]}  Nxd5 {[%clk 0:03:00]} 11. Nxc6 {[%clk 0:02:57]}  bxc6 {[%clk 0:03:00]} 12. Bd4 {[%clk 0:02:58]}  e5 {[%clk 0:02:59]} 13. Bc5 {[%clk 0:02:57]}  Be6 {[%clk 0:02:59]} 14. Ne4 {[%clk 0:02:57]}  Re8 {[%clk 0:02:58]} 15. h4 {[%clk 0:02:56]}  Qc7 {[%clk 0:02:55]} 16. h5 {[%clk 0:02:55]}  Red8 {[%clk 0:02:47]} 17. hxg6 {[%clk 0:02:44]}  hxg6 {[%clk 0:02:48]} 18. Qf2 {[%clk 0:02:41]}  Nf4 {[%clk 0:02:26]} 19. Rxd8+ {[%clk 0:02:37]}  Rxd8 {[%clk 0:02:24]} 20. Qh4 {[%clk 0:02:29]}  f6 {[%clk 0:02:21]} 21. Nxf6+ {[%clk 0:02:20]}  Bxf6 {[%clk 0:02:20]} 22. Qxf6 {[%clk 0:02:19]}  Qd7 {[%clk 0:02:20]} 23. Rh8# {[%clk 0:02:19]} 1-0


[Site "https://www.chess.com"]

[Event "Titled Tuesday Blitz March 07 Early 2023"]
[White "Derjabin, Ilja"]
[Black "Rakhmatullaev, Almas"]
[WhiteFideId "14104768"]
[BlackFideId "14205793"]
[WhiteElo "2309"]
[BlackElo "2221"]
[Result "1-0"]
[Round "04"]
[TimeControl "180+2"]
[Date "2023.03.07"]
[WhiteClock "0:00:43"]
[BlackClock "0:00:03"]

1. d4 {[%clk 0:02:58]}  Nf6 {[%clk 0:03:00]} 2. c4 {[%clk 0:02:56]}  g6 {[%clk 0:03:00]} 3. Nc3 {[%clk 0:02:55]}  Bg7 {[%clk 0:03:01]} 4. e4 {[%clk 0:02:52]}  d6 {[%clk 0:03:01]} 5. Nge2 {[%clk 0:02:51]}  O-O {[%clk 0:03:01]} 6. Ng3 {[%clk 0:02:52]}  e5 {[%clk 0:02:56]} 7. d5 {[%clk 0:02:52]}  Ne8 {[%clk 0:02:31]} 8. Be2 {[%clk 0:02:49]}  Nd7 {[%clk 0:02:15]} 9. O-O {[%clk 0:02:48]}  Ndf6 {[%clk 0:02:07]} 10. Be3 {[%clk 0:02:42]}  h5 {[%clk 0:02:03]} 11. Qd2 {[%clk 0:02:37]}  Ng4 {[%clk 0:01:49]} 12. Bg5 {[%clk 0:02:19]}  f6 {[%clk 0:01:45]} 13. Bxg4 {[%clk 0:02:18]}  Bxg4 {[%clk 0:01:16]} 14. Bh6 {[%clk 0:02:17]}  h4 {[%clk 0:01:17]} 15. Nh1 {[%clk 0:02:14]}  h3 {[%clk 0:01:15]} 16. f3 {[%clk 0:02:04]}  hxg2 {[%clk 0:01:15]} 17. Kxg2 {[%clk 0:02:04]}  Bd7 {[%clk 0:01:10]} 18. Ng3 {[%clk 0:01:57]}  Kf7 {[%clk 0:01:09]} 19. Bxg7 {[%clk 0:01:53]}  Nxg7 {[%clk 0:01:03]} 20. f4 {[%clk 0:01:53]}  Rh8 {[%clk 0:01:03]} 21. fxe5 {[%clk 0:01:52]}  Bh3+ {[%clk 0:00:55]} 22. Kg1 {[%clk 0:01:49]}  Bxf1 {[%clk 0:00:55]} 23. e6+ {[%clk 0:01:49]}  Ke7 {[%clk 0:00:56]} 24. Rxf1 {[%clk 0:01:48]}  Qg8 {[%clk 0:00:46]} 25. Nb5 {[%clk 0:01:45]}  Ne8 {[%clk 0:00:45]} 26. c5 {[%clk 0:01:38]}  a6 {[%clk 0:00:36]} 27. Nxc7 {[%clk 0:01:32]}  Rd8 {[%clk 0:00:18]} 28. Nxe8 {[%clk 0:01:23]}  Qxe8 {[%clk 0:00:19]} 29. cxd6+ {[%clk 0:01:05]}  Rxd6 {[%clk 0:00:19]} 30. Qc3 {[%clk 0:01:01]}  Kd8 {[%clk 0:00:06]} 31. Rc1 {[%clk 0:00:51]}  Qb5 {[%clk 0:00:02]} 32. Qc8+ {[%clk 0:00:43]}  Ke7 {[%clk 0:00:03]} 33. Rc7+ {[%clk 0:00:43]} 1-0


[Site "https://www.chess.com"]

[Event "Titled Tuesday Blitz March 07 Early 2023"]
[White "Zarnicki, Pablo"]
[Black "Santos Ruiz, Miguel"]
[WhiteFideId "100137"]
[BlackFideId "22291482"]
[WhiteElo "2468"]
[BlackElo "2504"]
[Result "0-1"]
[Round "04"]
[TimeControl "180+2"]
[Date "2023.03.07"]
[WhiteClock "0:02:43"]
[BlackClock "0:02:49"]

1. e4 {[%clk 0:03:00]}  c5 {[%clk 0:02:58]} 2. Nf3 {[%clk 0:03:01]}  Qc7 {[%clk 0:02:57]} 3. Nc3 {[%clk 0:03:00]}  e6 {[%clk 0:02:57]} 4. g3 {[%clk 0:02:59]}  a6 {[%clk 0:02:56]} 5. Bg2 {[%clk 0:02:59]}  b5 {[%clk 0:02:57]} 6. O-O {[%clk 0:03:00]}  Bb7 {[%clk 0:02:57]} 7. a4 {[%clk 0:02:50]}  b4 {[%clk 0:02:57]} 8. Ne2 {[%clk 0:02:49]}  Bxe4 {[%clk 0:02:56]} 9. d4 {[%clk 0:02:50]}  Nf6 {[%clk 0:02:56]} 10. Bf4 {[%clk 0:02:49]}  Qb7 {[%clk 0:02:54]} 11. Be5 {[%clk 0:02:45]}  Bxf3 {[%clk 0:02:52]} 12. Bxf6 {[%clk 0:02:43]}  Bxg2 {[%clk 0:02:49]} 0-1


[Site "https://www.chess.com"]